bitfinex-derivatives/quotes_SOLF0:USTF0_20251210
["timestamp","ask_amount","ask_price","bid_price","bid_amount"]
[1765330532056,0.04623285,137.68,137.66,3.2]
[1765330537353,0.42623285,137.68,137.65,0.04635528]
[1765330537862,0.42623285,137.68,137.65,3.24635528]
[1765330538364,6.5369,137.67,137.65,3.24635528]
[1765330541263,0.04623285,137.68,137.65,3.24635528]
[1765330542169,0.04623285,137.68,137.65,9.78405528]
[1765330542368,0.04623285,137.68,137.66,3.2]
[1765330543272,0.04623285,137.68,137.67,3.2]
[1765330544370,8.89707195,137.74,137.69,3.2]
[1765330545368,0.02127445,137.73,137.7,3.25122063]
[1765330546570,2.38327195,137.8,137.72,3.2]
[1765330546777,0.45,137.79,137.72,3.2]
[1765330547271,0.45,137.76,137.72,3.2]
[1765330547570,0.45,137.76,137.73,0.04674041]
[1765330550073,8.46557195,137.77,137.73,3.24674041]
[1765330550772,8.91557195,137.77,137.73,3.24674041]
[1765330550970,8.46557195,137.77,137.73,3.24674041]
[1765330551175,0.45,137.75,137.73,0.04674041]
[1765330553373,6.9831,137.75,137.73,0.04674041]
[1765330554375,8.46557195,137.77,137.74,3.2]
[1765330555079,8.91557195,137.77,137.74,3.2]
[1765330555272,0.45,137.76,137.73,3.24674041]
[1765330556074,8.91557195,137.77,137.73,3.24674041]
[1765330556980,6.9826,137.76,137.73,3.24674041]
[1765330557174,0.45,137.8,137.75,3.2]
[1765330557476,0.45,137.8,137.76,0.04982063]
[1765330557676,0.45,137.78,137.76,0.04982063]
[1765330559480,0.45,137.77,137.76,0.04982063]
[1765330560383,1.93327195,137.78,137.76,3.10982063]
[1765330560572,0.45,137.79,137.76,3.10982063]
[1765330562278,6.981,137.8,137.77,3.06]
[1765330562584,1.93327195,137.81,137.77,3.06]
[1765330563080,1.93327195,137.81,137.79,3.06]
[1765330563284,0.45,137.83,137.79,3.06]
[1765330563584,1.93327195,137.84,137.76,0.04982063]
[1765330563585,1.93327195,137.84,137.81,3.06]
[1765330563881,2.38327195,137.84,137.81,3.06]
[1765330564280,0.45,137.84,137.81,3.06]
[1765330564480,6.9788,137.84,137.81,3.06]
[1765330564779,0.45,137.83,137.8,0.05006153]
[1765330565080,0.45,137.81,137.8,0.05006153]
[1765330565381,2.38327195,137.82,137.8,0.05006153]
[1765330566078,1.93327195,137.85,137.8,3.31006153]
[1765330566471,2.37327195,137.85,137.8,3.31006153]
[1765330567279,2.37327195,137.85,137.81,3.26]
[1765330568687,1.2348473,137.84,137.81,3.26]
[1765330569583,1.2348473,137.85,137.82,3.26]
[1765330569791,1.2348473,137.87,137.82,3.26]
[1765330569976,1.2348473,137.87,137.84,3.26]
[1765330571690,1.2348473,137.89,137.85,3.26]
[1765330571879,1.2348473,137.91,137.87,3.26]
[1765330572981,1.6748473,137.91,137.87,3.26]
[1765330573488,1.6748473,137.91,137.88,3.26]
[1765330574488,1.2348473,137.91,137.88,3.26]
[1765330574985,1.2348473,137.92,137.88,3.26]
[1765330575187,1.6748473,137.93,137.89,3.31180375]
[1765330577085,1.6748473,137.91,137.89,0.05180375]
[1765330577301,0.44,137.9,137.89,0.05180375]
[1765330577796,1.6748473,137.91,137.89,0.05180375]
[1765330578495,8.2005473,137.91,137.89,0.05180375]
[1765330578792,0.44,137.9,137.89,0.05180375]
[1765330579897,1.6748473,137.9,137.89,0.05180375]
[1765330583997,6.5279,137.86,137.79,9.7907]
[1765330584188,1.2348473,137.83,137.81,3.26]
[1765330584494,1.2348473,137.83,137.79,6.5307]
[1765330584495,1.6748473,137.83,137.79,3.26]
[1765330584690,1.2348473,137.81,137.79,3.26]
[1765330584891,1.6748473,137.81,137.77,3.26]
[1765330585091,0.04878136,137.8,137.78,0.05427146]
[1765330586002,0.04878136,137.8,137.78,3.31427146]
[1765330586193,1.28362866,137.8,137.78,3.31427146]
[1765330589300,0.04878136,137.8,137.78,3.31427146]
[1765330591506,1.2348473,137.79,137.78,3.35427146]
[1765330595298,1.6648473,137.79,137.78,0.05427146]
[1765330597214,0.04878136,137.8,137.78,3.35427146]
[1765330599004,1.6648473,137.79,137.78,0.05427146]
[1765330602110,1.2348473,137.79,137.78,3.35427146]
[1765330602412,1.6648473,137.79,137.78,0.05427146]
[1765330604110,1.28362866,137.8,137.78,0.05427146]
[1765330604915,0.04878136,137.8,137.78,3.35427146]
[1765330607007,1.28362866,137.8,137.78,3.35427146]
[1765330607514,0.04878136,137.8,137.78,3.35427146]
[1765330609713,0.04878136,137.8,137.79,9.8311]
[1765330612014,0.04878136,137.8,137.79,3.3]
[1765330615820,0.47878136,137.8,137.78,0.05427146]
[1765330616027,1.6648473,137.79,137.78,0.05427146]
[1765330616219,8.1959473,137.79,137.78,0.05427146]
[1765330617017,7.7659473,137.79,137.78,0.05427146]
[1765330620024,8.2159473,137.79,137.78,0.05427146]
[1765330621222,6.9825,137.77,137.73,3.05]
[1765330621421,8.2173473,137.77,137.73,3.05]
[1765330621926,6.5314,137.79,137.73,3.05]
[1765330622330,0.0489959,137.77,137.76,3.05]
[1765330622517,1.2348473,137.81,137.76,3.05]
[1765330622718,1.2348473,137.84,137.76,3.05]
[1765330623521,0.05392456,137.81,137.79,0.04902388]
[1765330623726,0.05392456,137.81,137.8,3.05]
[1765330625624,7.03422456,137.81,137.79,0.04902388]
[1765330625823,1.2348473,137.8,137.79,0.04902388]
[1765330627030,1.6848473,137.8,137.79,0.04902388]
[1765330627926,1.2348473,137.8,137.79,3.33902388]
[1765330628429,1.2348473,137.8,137.79,0.04902388]
[1765330628430,1.6848473,137.8,137.79,0.04902388]
[1765330629828,8.26907186,137.81,137.79,0.04902388]
[1765330630128,0.45,137.8,137.79,0.04902388]
[1765330632736,7.03422456,137.81,137.79,0.04902388]
[1765330633833,0.45,137.8,137.79,0.04902388]
[1765330634529,0.05392456,137.81,137.79,3.33902388]
[1765330636529,0.05392456,137.81,137.8,3.29]
[1765330637237,6.9787,137.85,137.81,3.29]
[1765330638441,6.9787,137.85,137.81,9.8202]
[1765330638641,6.5287,137.85,137.82,3.29]
[1765330638842,6.5287,137.85,137.82,3.34084506]
[1765330639934,6.9787,137.85,137.82,3.34084506]
[1765330640246,6.5287,137.84,137.82,3.34084506]
[1765330640444,0.45,137.83,137.82,0.05084506]
[1765330641145,2.38053801,137.83,137.82,0.05084506]
[1765330642644,0.45,137.83,137.82,0.05084506]
[1765330643737,5.99756454,137.83,137.82,0.05084506]
[1765330644643,0.45,137.82,137.78,3.29]
[1765330645441,0.45,137.85,137.79,3.29]
[1765330645640,0.05053952,137.81,137.79,3.34375077]
[1765330646440,0.05053952,137.81,137.79,9.87475077]
[1765330646944,0.05053952,137.81,137.8,3.29]
[1765330649239,0.05053952,137.81,137.79,0.05375077]
[1765330649442,0.49053952,137.81,137.79,0.05375077]
[1765330649642,0.05053952,137.81,137.79,3.36375077]
[1765330649840,0.49053952,137.81,137.79,3.36375077]
[1765330650444,6.58093952,137.81,137.79,3.36375077]
[1765330650744,0.05053952,137.81,137.79,3.36375077]
[1765330653854,0.49053952,137.81,137.79,0.05375077]
[1765330655451,0.49053952,137.81,137.79,3.36375077]
[1765330657854,0.05053952,137.81,137.79,3.36375077]
[1765330661260,6.5292,137.84,137.79,3.36375077]
[1765330661753,108.25294647,137.88,137.79,3.36375077]
[1765330661754,0.49,137.88,137.79,3.36375077]
[1765330661957,5.54150778,137.87,137.79,3.31]
[1765330662149,0.49,137.88,137.79,3.31]
[1765330662460,6.5272,137.88,137.83,3.31]
[1765330662857,0.49,137.93,137.85,3.31]
[1765330663060,6.5247,137.93,137.88,3.36388839]
[1765330663250,250.93064484,137.95,137.88,3.36388839]
[1765330663452,5.53223622,137.94,137.88,3.36388839]
[1765330663763,7.0141,137.94,137.88,3.36388839]
[1765330665259,250.93064484,137.95,137.88,3.36388839]
[1765330665260,0.49,137.93,137.88,3.36388839]
[1765330666564,7.0157,137.91,137.88,3.36388839]
[1765330667259,6.5257,137.91,137.88,3.36388839]
[1765330667864,8.45533801,137.93,137.88,3.36388839]
[1765330668063,2.42053801,137.93,137.88,3.36388839]
[1765330668764,0.49,137.92,137.88,3.36388839]
[1765330670365,251.42064484,137.95,137.88,3.36388839]
[1765330671168,0.49,137.95,137.88,3.36388839]
[1765330671571,0.49,137.95,137.9,3.31]
[1765330671866,0.49,137.95,137.91,3.36268317]
[1765330672570,0.49,137.93,137.91,0.05268317]
[1765330673568,0.49,137.92,137.91,0.05268317]
[1765330674457,6.5246,137.93,137.91,0.05268317]
[1765330674967,7.0146,137.93,137.91,0.05268317]
[1765330675169,6.5246,137.93,137.91,3.36268317]
[1765330678259,6.5241,137.94,137.91,3.36268317]
[1765330678460,0.49,137.93,137.91,0.05268317]
[1765330679554,7.0146,137.93,137.91,0.05268317]
[1765330681660,7.0146,137.93,137.91,3.38268317]
[1765330682870,0.48,137.92,137.91,0.05268317]
[1765330683070,0.48,137.92,137.8,116.57713801]
[1765330683071,0.48,137.88,137.84,3.33]
[1765330683378,0.48,137.88,137.79,3.33]
[1765330684069,0.051266,137.85,137.82,0.05537443]
[1765330684373,0.051266,137.85,137.82,3.38537443]
[1765330685276,0.051266,137.85,137.82,9.91497443]
[1765330685476,0.051266,137.85,137.83,3.33]
[1765330686175,0.051266,137.85,137.84,3.21]
[1765330687068,1.93053801,137.89,137.84,9.7386]
[1765330687273,1.93053801,137.95,137.85,3.21]
[1765330687670,1.93053801,137.95,137.86,3.21]
[1765330688068,6.5241,137.94,137.89,3.25658002]
[1765330688274,2.42053801,137.95,137.89,3.25658002]
[1765330688576,6.5245,137.93,137.89,3.25658002]
[1765330692573,7.0145,137.93,137.89,3.25658002]
[1765330692776,6.5251,137.92,137.89,3.25658002]
[1765330694276,1.23337145,138.02,137.94,3.21]
[1765330694467,4.55337145,138.03,137.98,3.21]
[1765330695383,3.32,138.03,137.98,3.21]
[1765330695576,4.55337145,138.03,137.98,3.21]
[1765330696477,1.23337145,138.04,137.98,3.21]
[1765330696675,3.32,138.05,137.98,3.21]
[1765330696880,3.32,138.05,138.0,3.26564202]
[1765330699985,3.32,138.04,138.0,0.05564202]
[1765330700686,3.32,138.01,138.0,0.05564202]
[1765330700877,3.32,138.0,137.94,3.21]
[1765330701879,0.05054842,137.98,137.96,0.05092672]
[1765330706790,0.05054842,137.98,137.96,3.26092672]
[1765330710990,0.05054842,137.98,137.96,0.05092672]
[1765330710991,3.37054842,137.98,137.96,0.05092672]
[1765330712084,9.89284842,137.98,137.96,0.05092672]
[1765330712396,3.32,137.97,137.96,0.05092672]
[1765330716800,1.23265664,137.97,137.96,0.05092672]
[1765330717188,4.55265664,137.97,137.96,0.05092672]
[1765330718200,4.55265664,137.97,137.9,9.5355]
[1765330718398,4.55265664,137.94,137.91,3.01]
[1765330718896,101.4664,137.97,137.87,3.01]
[1765330718897,4.55265664,137.92,137.87,3.01]
[1765330719290,0.05375312,137.91,137.89,3.01]
[1765330721300,0.05375312,137.91,137.89,9.5363]
[1765330721607,3.32,137.98,137.9,3.01]
[1765330722197,9.8425,137.98,137.91,6.5254]
[1765330722504,9.8425,137.98,137.94,3.01]
[1765330722505,0.04729447,137.96,137.94,3.01]
[1765330729803,9.89039447,137.96,137.93,3.05611129]
[1765330730600,9.8437,137.95,137.93,0.04611129]
[1765330730910,3.32,137.94,137.93,0.04611129]
[1765330734413,0.04729447,137.96,137.93,3.06611129]
[1765330734610,3.10729447,137.96,137.93,3.06611129]
[1765330734913,0.04729447,137.96,137.93,3.06611129]
[1765330737510,3.10729447,137.96,137.93,3.06611129]
[1765330738015,0.04729447,137.96,137.93,3.06611129]
[1765330738517,6.57039447,137.96,137.93,3.06611129]
[1765330739811,9.65039447,137.96,137.93,3.06611129]
[1765330742316,6.5236,137.95,137.93,3.06611129]
[1765330746220,0.04729447,137.96,137.93,3.06611129]
[1765330748118,0.04729447,137.96,137.94,3.19]
[1765330749818,3.06,138.0,137.94,3.19]
[1765330750022,1.23281321,138.01,137.97,3.25]
[1765330750214,10.81291321,138.03,137.97,3.25]
[1765330750518,9.5801,138.03,137.97,3.25]
[1765330750717,10.81291321,138.03,137.97,3.25]
[1765330750917,10.81291321,138.03,138.0,3.25]
[1765330751117,3.06,138.01,137.99,3.30473306]
[1765330751523,9.5803,138.02,137.99,3.30473306]
[1765330752721,3.06,138.01,137.99,0.05473306]
[1765330752922,3.06,138.0,137.99,0.05473306]
[1765330753120,9.5808,138.01,137.99,0.05473306]
[1765330753615,9.58,138.03,137.99,3.30473306]
[1765330753818,3.06,138.02,137.99,3.30473306]
[1765330754624,9.58,138.03,137.99,3.30473306]
[1765330755019,3.06,138.02,137.99,3.30473306]
[1765330755218,9.5803,138.02,137.99,3.30473306]
[1765330756730,3.06,138.03,137.99,3.30473306]
[1765330757525,1.92472284,138.04,138.0,3.25]
[1765330757826,4.98472284,138.08,138.01,61.6]
[1765330758028,3.06,138.07,138.04,3.25]
[1765330761538,3.06,138.06,138.03,3.30497514]
[1765330763043,9.5784,138.06,138.03,0.05497514]
[1765330763339,9.5784,138.06,138.03,3.30497514]
[1765330764337,6.5184,138.06,138.03,3.30497514]
[1765330764542,1.92472284,138.08,138.03,3.30497514]
[1765330764543,3.06,138.08,138.03,3.30497514]
[1765330765137,3.06,138.08,138.04,3.25]
[1765330765638,3.06,138.07,138.04,3.25]
[1765330766544,3.06,138.06,138.03,0.05497514]
[1765330766946,3.06,138.06,138.03,3.30497514]
[1765330767442,9.5784,138.06,138.03,3.30497514]
[1765330770145,3.06,138.06,138.03,3.30497514]
[1765330770353,3.09,138.07,138.03,3.30497514]
[1765330771950,9.6079,138.07,138.03,3.30497514]
[1765330772349,3.09,138.06,138.03,3.30497514]
[1765330772855,3.09,138.06,138.03,0.05497514]
[1765330774654,3.09,138.04,138.03,0.05497514]
[1765330775160,5.01472284,138.04,138.03,0.05497514]
[1765330775547,5.01472284,138.04,137.98,9.7417]
[1765330775853,3.09,138.02,137.99,3.22]
[1765330776758,0.0542724,138.02,137.99,3.26807559]
[1765330778460,0.0542724,138.02,137.99,9.78967559]
[1765330778660,0.0542724,138.02,138.0,3.22]
[1765330784460,0.0542724,138.02,138.0,9.7411]
[1765330784659,0.0542724,138.02,138.01,3.22]
[1765330788763,3.1442724,138.02,137.99,0.04807559]
[1765330789367,9.6107,138.01,137.99,3.26807559]
[1765330791778,9.6112,138.0,137.99,0.04807559]
[1765330793270,0.0542724,138.02,137.99,0.04807559]
[1765330793271,3.09,138.01,137.99,0.04807559]
[1765330795674,3.09,138.01,137.99,3.26807559]
[1765330796770,3.09,138.01,137.99,0.04807559]
[1765330797476,3.09,138.0,137.99,0.04807559]
[1765330797876,3.1442724,138.02,137.99,3.26807559]
[1765330798280,3.09,138.01,137.99,3.26807559]
[1765330800376,9.6107,138.01,137.99,3.26807559]
[1765330800581,9.6107,138.01,137.99,0.04807559]
[1765330800980,9.6107,138.01,137.99,3.30807559]
[1765330802278,0.0542724,138.02,137.99,3.30807559]
[1765330802672,3.21,138.06,138.0,3.26]
[1765330803275,9.7284,138.06,138.02,3.26]
[1765330803985,9.7284,138.06,138.03,3.30965819]
[1765330804180,3.21,138.05,138.03,3.30965819]
[1765330804681,9.7289,138.05,138.03,0.04965819]
[1765330805670,9.7289,138.05,138.03,3.30965819]
[1765330805876,9.7283,138.07,138.03,3.30965819]
[1765330806086,3.21,138.07,138.03,3.30965819]
[1765330806386,6.5189,138.05,138.03,3.30965819]
[1765330806578,9.5289,138.05,138.03,3.30965819]
[1765330806776,3.01,138.04,138.03,0.04965819]
[1765330807586,9.5289,138.05,138.03,0.04965819]
[1765330808478,6.5189,138.05,138.03,3.18965819]
[1765330808683,3.01,138.06,138.03,3.18965819]
[1765330808886,9.5282,138.07,138.03,3.18965819]
[1765330809587,3.01,138.07,138.03,3.18965819]
[1765330809776,3.01,138.09,138.03,3.18965819]
[1765330809977,8.43719377,138.08,138.03,3.18965819]
[1765330810279,3.01,138.08,138.03,3.18965819]
[1765330810482,9.5275,138.08,138.03,3.18965819]
[1765330811380,3.01,138.07,138.03,3.18965819]
[1765330813288,3.01,138.07,138.04,3.14]
[1765330813587,9.5275,138.08,138.04,3.14]
[1765330814192,3.01,138.07,138.04,3.14]
[1765330815689,3.01,138.09,138.05,3.14]
[1765330815892,3.01,138.09,138.06,3.19005204]
[1765330817093,3.01,138.09,138.07,3.14]
[1765330818790,3.01,138.09,138.06,3.19005204]
[1765330818791,3.01,138.08,138.06,3.19005204]
[1765330818985,4.24060035,138.08,138.06,0.05005204]
[1765330819181,3.01,138.07,138.06,0.05005204]
[1765330819594,3.01,138.04,137.99,3.14]
[1765330819997,3.01,138.02,137.99,3.14]
[1765330820183,3.01,138.02,137.97,3.14]
[1765330820697,3.06056953,138.01,137.98,0.04924303]
[1765330821000,3.06056953,138.01,137.98,3.18924303]
[1765330821391,0.05056953,138.01,137.98,9.71134303]
[1765330821798,4.24060035,137.99,137.98,0.04924303]
[1765330832917,4.24060035,137.99,137.93,22.08504777]
[1765330832918,4.47060035,137.99,137.93,3.09]
[1765330833806,0.05429792,137.97,137.95,3.13954393]
[1765330838309,3.29429792,137.97,137.95,3.13954393]
[1765330838508,3.29429792,137.97,137.95,0.04954393]
[1765330838716,4.52489827,137.97,137.95,0.04954393]
[1765330838900,3.24,137.96,137.95,0.04954393]
[1765330852920,3.24,137.94,137.92,3.09]
[1765330853116,3.24,137.94,137.88,163.1224]
[1765330853117,3.24,137.92,137.89,3.09]
[1765330853919,3.29332245,137.92,137.89,0.04940365]
[1765330854124,3.24,137.9,137.89,0.04940365]
[1765330854327,3.24,137.91,137.89,3.13940365]
[1765330858119,0.05332245,137.92,137.89,3.13940365]
[1765330858924,3.29332245,137.92,137.89,3.13940365]
[1765330860329,3.03,137.91,137.89,3.13940365]
[1765330861531,10.78610035,137.91,137.89,0.04940365]
[1765330861726,3.03,137.9,137.89,0.04940365]
[1765330862834,3.03,137.88,137.85,3.24]
[1765330863034,3.03,137.87,137.83,3.24]
[1765330863634,9.5574,137.87,137.83,3.24]
[1765330863936,0.04586582,137.86,137.84,3.2865972]
[1765330866436,3.33586582,137.86,137.84,3.2865972]
[1765330866640,9.86376582,137.86,137.84,3.2865972]
[1765330866940,3.29,137.85,137.84,0.0465972]
[1765330867543,7.80436617,137.86,137.84,3.3665972]
[1765330868544,0.04586582,137.86,137.84,3.3665972]
[1765330869344,4.52060035,137.95,137.87,3.32]
[1765330869532,4.52060035,137.98,137.9,3.32]
[1765330869842,1.23060035,137.99,137.92,3.32]
[1765330870037,3.29,138.0,137.94,3.32]
[1765330870450,0.05106437,137.98,137.97,3.32]
[1765330870652,0.04905763,137.99,137.97,3.32]
[1765330871852,0.04905763,137.99,137.97,64.94]
[1765330872056,3.33905763,137.99,137.96,0.05441038]
[1765330872255,0.04905763,137.99,137.96,3.37441038]
[1765330872946,3.33905763,137.99,137.96,3.37441038]
[1765330874547,0.04905763,137.99,137.96,3.37441038]
[1765330874943,0.04905763,137.99,137.97,3.32]
[1765330875952,101.3784,138.09,137.97,3.32]
[1765330875953,3.29,138.07,138.01,3.32]
[1765330876655,3.29,138.07,138.02,3.32]
[1765330876851,3.29,138.07,138.01,6.5204]
[1765330876852,0.0530725,138.06,138.03,3.36814816]
[1765330877844,0.0530725,138.06,138.03,0.04814816]
[1765330878049,3.3430725,138.06,138.03,0.04814816]
[1765330879150,0.0530725,138.06,138.03,3.36814816]
[1765330880254,3.29,138.19,138.09,3.32]
[1765330880459,3.29,138.19,138.11,3.32]
[1765330880953,3.29,138.16,138.11,3.32]
[1765330881255,0.04724793,138.15,138.12,3.37387211]
[1765330884360,3.33724793,138.15,138.12,3.37387211]
[1765330884551,3.33724793,138.15,138.12,0.05387211]
[1765330886054,9.85164793,138.15,138.12,0.05387211]
[1765330886251,3.29,138.14,138.12,0.05387211]
[1765330887655,0.04724793,138.15,138.12,0.05387211]
[1765330887856,3.33724793,138.15,138.12,0.05387211]
[1765330888861,0.04724793,138.15,138.12,3.37387211]
[1765330891667,0.04724793,138.15,138.12,9.88917211]
[1765330891860,0.04724793,138.15,138.13,3.34]
[1765330894062,9.7215,138.21,138.14,3.34]
[1765330895065,3.21,138.2,138.16,3.38732038]
[1765330895464,9.7215,138.21,138.17,3.34]
[1765330895662,3.21,138.21,138.17,3.34]
[1765330897268,3.21,138.24,138.18,3.34]
[1765330897468,3.21,138.24,138.2,0.05579473]
[1765330898473,3.21,138.22,138.2,0.05579473]
[1765330899671,9.7204,138.23,138.2,0.05579473]
[1765330900470,9.7209,138.22,138.2,0.05579473]
[1765330900768,3.21,138.25,138.2,3.39579473]
[1765330902567,9.72,138.24,138.2,3.39579473]
[1765330902962,6.5109,138.22,138.2,3.39579473]
[1765330904061,3.21,138.23,138.2,3.39579473]
[1765330904466,3.21,138.23,138.2,0.05579473]
[1765330905170,3.21,138.22,138.2,0.05579473]
[1765330905372,3.21,138.25,138.2,3.39579473]
[1765330905777,313.19751152,138.27,138.2,3.39579473]
[1765330905972,307.84904017,138.27,138.2,3.39579473]
[1765330906376,3.21,138.24,138.2,3.39579473]
[1765330906675,3.21,138.24,138.2,0.05579473]
[1765330907076,3.21,138.24,138.2,3.39579473]
[1765330907467,9.72,138.24,138.2,3.39579473]
[1765330907668,3.21,138.23,138.2,3.39579473]
[1765330907868,3.21,138.23,138.2,0.05579473]
[1765330909582,3.21,138.22,138.2,0.05579473]
[1765330910074,9.7203,138.24,138.2,3.39579473]
[1765330910577,3.21,138.23,138.2,3.39579473]
[1765330912471,3.21,138.25,138.21,3.34]
[1765330912975,3.21,138.25,138.2,3.39579473]
[1765330913576,3.21,138.24,138.21,6.5112]
[1765330915379,3.21,138.24,138.21,9.8512]
[1765330915679,3.21,138.24,138.2,0.05579473]
[1765330917176,3.21,138.21,138.2,0.05579473]
[1765330921879,3.22,138.19,138.12,3.25]
[1765330922181,3.22,138.19,138.14,3.25]
[1765330922774,0.04699691,138.18,138.15,0.04854387]
[1765330923075,3.26699691,138.18,138.15,0.04854387]
[1765330924174,3.22,138.16,138.15,0.04854387]
[1765330924380,8.59483524,138.16,138.15,0.04854387]
[1765330924583,3.22,138.14,138.08,3.25]
[1765330924780,3.22,138.12,138.08,3.25]
[1765330925484,3.27499957,138.11,138.09,0.05576872]
[1765330925785,3.26893787,138.11,138.09,0.05576872]
[1765330925974,0.04893787,138.11,138.09,3.30576872]
[1765330926379,3.18893787,138.11,138.09,0.05576872]
[1765330930084,0.04893787,138.11,138.09,3.30576872]
[1765330933795,3.18893787,138.11,138.09,0.05576872]
[1765330935195,3.14,138.1,138.09,0.05576872]
[1765330935794,0.04893787,138.11,138.09,3.30576872]
[1765330936289,9.70503787,138.11,138.09,0.05576872]
[1765330936485,3.14,138.1,138.09,0.05576872]
[1765330942202,3.14,138.1,138.01,3.25]
[1765330942203,3.14,138.04,138.01,3.25]
[1765330942400,6.34416365,138.07,138.01,3.25]
[1765330942605,3.14,138.07,138.01,3.25]
[1765330943108,0.05320672,138.05,138.03,0.04761713]
[1765330943706,0.05320672,138.05,138.03,3.29761713]
[1765330944207,104.5025,138.11,138.03,3.29761713]
[1765330944395,3.14,138.1,138.03,3.29761713]
[1765330944910,6.518,138.07,138.03,3.29761713]
[1765330945103,0.05212386,138.06,138.03,3.29761713]
[1765330945510,6.57072386,138.06,138.03,3.29761713]
[1765330946011,0.05212386,138.06,138.03,3.29761713]
[1765330949616,0.05212386,138.06,138.03,9.81731713]
[1765330949914,0.05212386,138.06,138.04,3.19]
[1765330956219,6.57052386,138.06,138.04,3.19]
[1765330956918,6.5188,138.05,138.03,3.23761713]
[1765330957219,6.5188,138.05,138.03,0.04761713]
[1765330957220,4.31044399,138.04,138.03,0.04761713]
[1765330957720,4.31044399,138.04,137.97,3.19]
[1765330957721,3.08,138.02,137.97,3.19]
[1765330957920,4.31044399,138.01,137.97,3.19]
[1765330958519,6.56855289,138.0,137.98,3.24156005]
[1765330960023,3.08,137.99,137.98,0.05156005]
[1765330960224,9.64855289,138.0,137.98,0.05156005]
[1765330960421,0.04735289,138.0,137.98,3.24156005]
[1765330969034,4.35779688,138.0,137.98,0.05156005]
[1765330969220,0.04735289,138.0,137.98,0.05156005]
[1765330969425,0.04735289,138.0,137.98,3.24156005]
[1765330969731,3.12735289,138.0,137.98,3.24156005]
[1765330970120,0.04735289,138.0,137.98,3.24156005]
[1765330971438,0.04735289,138.0,137.99,3.19]
[1765330972526,1.23044399,138.07,138.01,3.19]
[1765330972723,3.08,138.06,138.01,3.19]
[1765330972927,3.08,138.04,138.01,3.19]
[1765330973531,3.13416409,138.04,138.01,3.24431926]
[1765330974133,0.05416409,138.04,138.01,3.24431926]
[1765330974824,0.05416409,138.04,138.01,9.76501926]
[1765330975029,0.05416409,138.04,138.02,3.19]
[1765330992042,9.58346409,138.04,138.01,3.29431926]
[1765330992247,4.24044399,138.03,138.01,3.29431926]
[1765330992849,10.76034399,138.03,138.01,0.05431926]
[1765330993046,3.01,138.02,138.01,0.05431926]
[1765330993549,3.01,138.01,137.98,3.24]
[1765330993751,4.24044399,138.01,137.98,3.24]
[1765330994250,4.24044399,138.01,137.99,3.24]
[1765330994251,1.23044399,138.01,137.99,3.24]
[1765330994452,1.28068378,138.01,137.99,3.28766971]
[1765330996748,3.06023979,138.01,137.99,0.04766971]
[1765330997454,9.58093979,138.01,137.99,0.04766971]
[1765330997653,3.01,138.0,137.99,0.04766971]
[1765331000855,0.05023979,138.01,137.99,3.28766971]
[1765331003861,0.05023979,138.01,138.0,3.24]
[1765331006663,7.9047547,138.08,138.0,3.24]
[1765331006861,3.01,138.07,138.02,3.24]
[1765331007766,3.06508167,138.06,138.03,3.29560478]
[1765331008071,3.01,138.05,138.03,0.05560478]
[1765331010372,3.01,138.05,138.03,3.24560478]
[1765331014185,9.84348167,138.06,138.03,3.24560478]
[1765331014680,6.57348167,138.06,138.03,3.24560478]
[1765331014878,3.32508167,138.06,138.03,3.24560478]
[1765331016186,9.7889,138.05,138.03,3.24560478]
[1765331019384,3.27,138.04,138.03,0.05560478]
[1765331022395,9.7893,138.04,138.03,0.05560478]
[1765331023890,3.27,138.01,137.98,3.19]
[1765331024786,3.31681485,138.01,137.98,3.23639871]
[1765331029700,9.83761485,138.01,137.98,3.23639871]
[1765331031199,3.31681485,138.01,137.98,3.23639871]
[1765331033205,3.27,138.0,137.98,3.23639871]
[1765331034106,3.27,138.0,137.98,0.04639871]
[1765331035207,9.7916,137.99,137.98,0.04639871]